[Event "Titled Tuesday Blitz April 05 Early 2022"]
[White "volunteers1998"]
[Black "Rodchenkov, Sergey D."]
[BlackFideId "4168712"]
[WhiteElo "2326"]
[BlackElo "2306"]
[Result "0-1"]
[Round "06"]
[TimeControl "180+1"]
[Date "2022.04.05"]
[WhiteClock "0:00:01"]
[BlackClock "0:00:15"]

1. e4 {[%clk 0:02:59]}  c5 {[%clk 0:02:59]} 2. Nf3 {[%clk 0:02:59]}  d6 {[%clk 0:03:00]} 3. d4 {[%clk 0:02:58]}  cxd4 {[%clk 0:03:00]} 4. Nxd4 {[%clk 0:02:57]}  Nf6 {[%clk 0:03:01]} 5. Nc3 {[%clk 0:02:54]}  a6 {[%clk 0:03:01]} 6. h3 {[%clk 0:02:55]}  e5 {[%clk 0:03:01]} 7. Nde2 {[%clk 0:02:53]}  h5 {[%clk 0:03:01]} 8. g3 {[%clk 0:02:48]}  Be7 {[%clk 0:02:53]} 9. Bg2 {[%clk 0:02:46]}  b5 {[%clk 0:02:53]} 10. O-O {[%clk 0:02:41]}  Nbd7 {[%clk 0:02:42]} 11. Be3 {[%clk 0:02:38]}  Nb6 {[%clk 0:02:40]} 12. b3 {[%clk 0:02:32]}  Bb7 {[%clk 0:02:24]} 13. Qd2 {[%clk 0:02:24]}  O-O {[%clk 0:02:21]} 14. Rad1 {[%clk 0:02:19]}  Qc7 {[%clk 0:02:18]} 15. Nd5 {[%clk 0:02:11]}  Nbxd5 {[%clk 0:01:56]} 16. exd5 {[%clk 0:02:12]}  Rac8 {[%clk 0:01:57]} 17. c3 {[%clk 0:02:02]}  a5 {[%clk 0:01:54]} 18. f4 {[%clk 0:01:58]}  exf4 {[%clk 0:01:49]} 19. Bxf4 {[%clk 0:01:52]}  h4 {[%clk 0:01:49]} 20. Kh1 {[%clk 0:01:46]}  Nd7 {[%clk 0:01:36]} 21. Nd4 {[%clk 0:01:43]}  Qxc3 {[%clk 0:01:08]} 22. Qxc3 {[%clk 0:01:37]}  Rxc3 {[%clk 0:01:09]} 23. Nxb5 {[%clk 0:01:34]}  Rc2 {[%clk 0:01:08]} 24. Rd2 {[%clk 0:01:30]}  Rxd2 {[%clk 0:01:06]} 25. Bxd2 {[%clk 0:01:31]}  hxg3 {[%clk 0:01:03]} 26. Bxa5 {[%clk 0:01:25]}  Ne5 {[%clk 0:01:00]} 27. Nd4 {[%clk 0:01:17]}  Rc8 {[%clk 0:00:55]} 28. Nf5 {[%clk 0:01:13]}  Bf8 {[%clk 0:00:50]} 29. Nxg3 {[%clk 0:01:09]}  g6 {[%clk 0:00:44]} 30. Bd2 {[%clk 0:01:01]}  Rc2 {[%clk 0:00:42]} 31. Bf4 {[%clk 0:00:56]}  Rxa2 {[%clk 0:00:42]} 32. Ne4 {[%clk 0:00:53]}  Kg7 {[%clk 0:00:30]} 33. Bg5 {[%clk 0:00:49]}  f5 {[%clk 0:00:29]} 34. Nc3 {[%clk 0:00:40]}  Rc2 {[%clk 0:00:29]} 35. Nb5 {[%clk 0:00:36]}  Ba6 {[%clk 0:00:24]} 36. Nd4 {[%clk 0:00:33]}  Rc3 {[%clk 0:00:16]} 37. Ne6+ {[%clk 0:00:29]}  Kf7 {[%clk 0:00:16]} 38. Ra1 {[%clk 0:00:27]}  Bb7 {[%clk 0:00:16]} 39. Ra7 {[%clk 0:00:22]}  Rxb3 {[%clk 0:00:15]} 40. Rxb7+ {[%clk 0:00:19]}  Rxb7 {[%clk 0:00:14]} 41. Nd8+ {[%clk 0:00:19]}  Ke8 {[%clk 0:00:15]} 42. Nxb7 {[%clk 0:00:19]}  Kd7 {[%clk 0:00:16]} 43. Na5 {[%clk 0:00:18]}  Bg7 {[%clk 0:00:15]} 44. Kg1 {[%clk 0:00:17]}  Kc7 {[%clk 0:00:16]} 45. Kf2 {[%clk 0:00:17]}  Kb6 {[%clk 0:00:16]} 46. Nb3 {[%clk 0:00:16]}  Nd3+ {[%clk 0:00:16]} 47. Ke3 {[%clk 0:00:15]}  Nb4 {[%clk 0:00:17]} 48. Nd4 {[%clk 0:00:13]}  Be5 {[%clk 0:00:16]} 49. Nf3 {[%clk 0:00:12]}  Bg7 {[%clk 0:00:16]} 50. Bf1 {[%clk 0:00:12]}  Nxd5+ {[%clk 0:00:16]} 51. Kf2 {[%clk 0:00:10]}  Kc5 {[%clk 0:00:17]} 52. Ba6 {[%clk 0:00:08]}  Nc3 {[%clk 0:00:16]} 53. Be3+ {[%clk 0:00:07]}  Kd5 {[%clk 0:00:15]} 54. Bb7+ {[%clk 0:00:08]}  Ke6 {[%clk 0:00:14]} 55. Ng5+ {[%clk 0:00:06]}  Ke7 {[%clk 0:00:14]} 56. Nf3 {[%clk 0:00:04]}  d5 {[%clk 0:00:14]} 57. Bd4 {[%clk 0:00:03]}  Ne4+ {[%clk 0:00:14]} 58. Ke3 {[%clk 0:00:02]}  Bh6+ {[%clk 0:00:14]} 59. Ke2 {[%clk 0:00:01]}  Kd6 {[%clk 0:00:15]} 0-1


[Site "https://www.chess.com"]

[Event "Titled Tuesday Blitz April 05 Early 2022"]
[White "Adewumi, Tanitoluwa"]
[Black "Nogerbek, Kazybek"]
[WhiteFideId "30966396"]
[BlackFideId "13710427"]
[WhiteElo "2588"]
[BlackElo "2840"]
[Result "0-1"]
[Round "07"]
[TimeControl "180+1"]
[Date "2022.04.05"]
[WhiteClock "0:00:06"]
[BlackClock "0:02:06"]

1. e4 {[%clk 0:03:00]}  Nc6 {[%clk 0:02:57]} 2. d4 {[%clk 0:03:00]}  d5 {[%clk 0:02:57]} 3. exd5 {[%clk 0:02:59]}  Qxd5 {[%clk 0:02:58]} 4. Nf3 {[%clk 0:02:59]}  Bg4 {[%clk 0:02:59]} 5. Be2 {[%clk 0:02:59]}  O-O-O {[%clk 0:03:00]} 6. Be3 {[%clk 0:02:48]}  Nf6 {[%clk 0:02:58]} 7. O-O {[%clk 0:02:45]}  Qh5 {[%clk 0:02:56]} 8. h3 {[%clk 0:02:38]}  e5 {[%clk 0:02:56]} 9. hxg4 {[%clk 0:02:04]}  Nxg4 {[%clk 0:02:57]} 10. Nh4 {[%clk 0:02:04]}  f5 {[%clk 0:02:52]} 11. Bxg4 {[%clk 0:01:52]}  fxg4 {[%clk 0:02:52]} 12. g3 {[%clk 0:01:52]}  exd4 {[%clk 0:02:49]} 13. Bc1 {[%clk 0:01:42]}  g5 {[%clk 0:02:49]} 14. Nf5 {[%clk 0:01:24]}  Ne5 {[%clk 0:02:46]} 15. Nd2 {[%clk 0:01:16]}  Bb4 {[%clk 0:02:42]} 16. Re1 {[%clk 0:01:11]}  Nf3+ {[%clk 0:02:24]} 17. Nxf3 {[%clk 0:01:10]}  gxf3 {[%clk 0:02:25]} 18. Re5 {[%clk 0:01:00]}  Rhe8 {[%clk 0:02:15]} 19. Rxe8 {[%clk 0:00:31]}  Rxe8 {[%clk 0:02:16]} 20. Be3 {[%clk 0:00:27]}  dxe3 {[%clk 0:02:13]} 21. Nxe3 {[%clk 0:00:23]}  Bc5 {[%clk 0:02:10]} 22. Nf1 {[%clk 0:00:16]}  g4 {[%clk 0:02:09]} 23. Qd5 {[%clk 0:00:06]}  Qxd5 {[%clk 0:02:06]} 0-1


[Site "https://www.chess.com"]

[Event "Titled Tuesday Blitz April 05 Early 2022"]
[White "Barbashin, Igor"]
[Black "Tuleyeva-Aketayeva, Dana"]
[WhiteFideId "4155718"]
[BlackFideId "13701932"]
[WhiteElo "2138"]
[BlackElo "1875"]
[Result "1-0"]
[Round "07"]
[TimeControl "180+1"]
[Date "2022.04.05"]
[WhiteClock "0:00:34"]
[BlackClock "0:00:01"]

1. d4 {[%clk 0:03:00]}  Nf6 {[%clk 0:02:55]} 2. c4 {[%clk 0:02:58]}  e6 {[%clk 0:02:55]} 3. Nf3 {[%clk 0:02:54]}  c5 {[%clk 0:02:54]} 4. e3 {[%clk 0:02:50]}  d5 {[%clk 0:02:49]} 5. Nc3 {[%clk 0:02:48]}  Be7 {[%clk 0:02:47]} 6. Bd3 {[%clk 0:02:45]}  dxc4 {[%clk 0:02:45]} 7. Bxc4 {[%clk 0:02:43]}  Nc6 {[%clk 0:02:43]} 8. O-O {[%clk 0:02:42]}  cxd4 {[%clk 0:02:43]} 9. exd4 {[%clk 0:02:43]}  Nd5 {[%clk 0:02:35]} 10. Qe2 {[%clk 0:02:33]}  Nxc3 {[%clk 0:02:30]} 11. bxc3 {[%clk 0:02:34]}  O-O {[%clk 0:02:30]} 12. Bf4 {[%clk 0:02:29]}  Bd6 {[%clk 0:02:22]} 13. Bg5 {[%clk 0:02:22]}  Be7 {[%clk 0:02:19]} 14. Be3 {[%clk 0:02:21]}  Bf6 {[%clk 0:02:17]} 15. Rfd1 {[%clk 0:02:19]}  Ne7 {[%clk 0:02:12]} 16. Bb3 {[%clk 0:02:15]}  Nd5 {[%clk 0:02:11]} 17. Rac1 {[%clk 0:02:05]}  Nxe3 {[%clk 0:02:09]} 18. Qxe3 {[%clk 0:02:06]}  Qb6 {[%clk 0:02:02]} 19. c4 {[%clk 0:02:03]}  Bd7 {[%clk 0:01:55]} 20. c5 {[%clk 0:02:02]}  Qc7 {[%clk 0:01:48]} 21. Ne5 {[%clk 0:01:54]}  Bxe5 {[%clk 0:01:47]} 22. dxe5 {[%clk 0:01:49]}  Bc6 {[%clk 0:01:46]} 23. Rd6 {[%clk 0:01:46]}  Rad8 {[%clk 0:01:11]} 24. h4 {[%clk 0:01:45]}  a5 {[%clk 0:01:03]} 25. h5 {[%clk 0:01:40]}  h6 {[%clk 0:00:57]} 26. Rc4 {[%clk 0:01:37]}  f5 {[%clk 0:00:38]} 27. Rcd4 {[%clk 0:01:27]}  Kh8 {[%clk 0:00:18]} 28. Bxe6 {[%clk 0:01:24]}  Be4 {[%clk 0:00:12]} 29. Rd2 {[%clk 0:01:12]}  a4 {[%clk 0:00:09]} 30. f3 {[%clk 0:01:02]}  Bc6 {[%clk 0:00:08]} 31. Bxf5 {[%clk 0:00:55]}  Rxd6 {[%clk 0:00:07]} 32. cxd6 {[%clk 0:00:52]}  Qf7 {[%clk 0:00:07]} 33. Bg6 {[%clk 0:00:50]}  Qe6 {[%clk 0:00:07]} 34. Qd3 {[%clk 0:00:37]}  Bd7 {[%clk 0:00:05]} 35. Qd4 {[%clk 0:00:36]}  b5 {[%clk 0:00:01]} 36. Bb1 {[%clk 0:00:34]} 1-0


[Site "https://www.chess.com"]

[Event "Titled Tuesday Blitz April 05 Early 2022"]
[White "Bintang, Rasyid A. Hidayat"]
[Black "Prado Lobo, Jonas"]
[WhiteFideId "7105355"]
[BlackFideId "32050666"]
[WhiteElo "2374"]
[BlackElo "2214"]
[Result "0-1"]
[Round "07"]
[TimeControl "180+1"]
[Date "2022.04.05"]
[WhiteClock "0:00:23"]
[BlackClock "0:00:08"]

1. d4 {[%clk 0:02:52]}  Nf6 {[%clk 0:02:59]} 2. Bf4 {[%clk 0:02:49]}  c5 {[%clk 0:02:57]} 3. d5 {[%clk 0:02:49]}  e6 {[%clk 0:02:57]} 4. Nc3 {[%clk 0:02:49]}  a6 {[%clk 0:02:52]} 5. a4 {[%clk 0:02:47]}  d6 {[%clk 0:02:45]} 6. e4 {[%clk 0:02:47]}  e5 {[%clk 0:02:40]} 7. Bg3 {[%clk 0:02:46]}  g6 {[%clk 0:02:39]} 8. Be2 {[%clk 0:02:43]}  Bg7 {[%clk 0:02:39]} 9. Nf3 {[%clk 0:02:43]}  Nh5 {[%clk 0:02:37]} 10. Nd2 {[%clk 0:02:39]}  Nf4 {[%clk 0:02:33]} 11. Bf3 {[%clk 0:02:36]}  O-O {[%clk 0:02:32]} 12. O-O {[%clk 0:02:35]}  Nd7 {[%clk 0:02:20]} 13. Nc4 {[%clk 0:02:33]}  Nb6 {[%clk 0:02:10]} 14. Ne3 {[%clk 0:02:33]}  f5 {[%clk 0:02:04]} 15. a5 {[%clk 0:02:30]}  Nd7 {[%clk 0:02:03]} 16. Nc4 {[%clk 0:02:28]}  Nf6 {[%clk 0:01:55]} 17. Re1 {[%clk 0:02:22]}  N4h5 {[%clk 0:01:45]} 18. Bxh5 {[%clk 0:02:19]}  Nxh5 {[%clk 0:01:46]} 19. f3 {[%clk 0:02:08]}  Qg5 {[%clk 0:01:44]} 20. Nxd6 {[%clk 0:02:00]}  Nxg3 {[%clk 0:01:36]} 21. hxg3 {[%clk 0:02:01]}  Qxg3 {[%clk 0:01:36]} 22. Nxc8 {[%clk 0:01:57]}  Raxc8 {[%clk 0:01:36]} 23. d6 {[%clk 0:01:52]}  Bh6 {[%clk 0:01:28]} 24. Qd5+ {[%clk 0:01:48]}  Rf7 {[%clk 0:01:26]} 25. exf5 {[%clk 0:01:41]}  Bf4 {[%clk 0:01:24]} 26. Ne4 {[%clk 0:01:17]}  Qh2+ {[%clk 0:01:21]} 27. Kf2 {[%clk 0:01:18]}  Qh4+ {[%clk 0:01:10]} 28. Ke2 {[%clk 0:01:17]}  gxf5 {[%clk 0:01:07]} 29. Rh1 {[%clk 0:01:10]}  Qd8 {[%clk 0:01:01]} 30. Nxc5 {[%clk 0:01:07]}  Rc6 {[%clk 0:00:49]} 31. Nxb7 {[%clk 0:00:59]}  Rxc2+ {[%clk 0:00:40]} 32. Kd1 {[%clk 0:00:46]}  Qc8 {[%clk 0:00:28]} 33. d7 {[%clk 0:00:42]}  Rd2+ {[%clk 0:00:20]} 34. Qxd2 {[%clk 0:00:41]}  Rxd7 {[%clk 0:00:20]} 35. Nd6 {[%clk 0:00:30]}  Qc5 {[%clk 0:00:11]} 36. Ne4 {[%clk 0:00:23]}  Rxd2+ {[%clk 0:00:08]} 37. Nxd2 {[%clk 0:00:23]}  Qd4 {[%clk 0:00:08]} 38. Ke2 {[%clk 0:00:22]}  Qxd2+ {[%clk 0:00:08]} 39. Kf1 {[%clk 0:00:23]}  Bg3 {[%clk 0:00:08]} 0-1


[Site "https://www.chess.com"]

[Event "Titled Tuesday Blitz April 05 Early 2022"]
[White "Butti, Enrique"]
[Black "Pesotskiy, Mikhail"]
[WhiteFideId "3700470"]
[BlackFideId "34164453"]
[WhiteElo "2080"]
[BlackElo "2010"]
[Result "0-1"]
[Round "07"]
[TimeControl "180+1"]
[Date "2022.04.05"]
[WhiteClock "0:01:19"]
[BlackClock "0:01:20"]

1. d4 {[%clk 0:02:59]}  Nf6 {[%clk 0:02:16]} 2. Nf3 {[%clk 0:02:56]}  e6 {[%clk 0:02:15]} 3. e3 {[%clk 0:02:55]}  c5 {[%clk 0:02:15]} 4. Bd3 {[%clk 0:02:54]}  b6 {[%clk 0:02:15]} 5. O-O {[%clk 0:02:53]}  Bb7 {[%clk 0:02:16]} 6. b3 {[%clk 0:02:53]}  Be7 {[%clk 0:02:17]} 7. Bb2 {[%clk 0:02:52]}  O-O {[%clk 0:02:17]} 8. c4 {[%clk 0:02:52]}  Nc6 {[%clk 0:02:17]} 9. Nc3 {[%clk 0:02:42]}  Nb4 {[%clk 0:02:17]} 10. Bb1 {[%clk 0:02:40]}  d5 {[%clk 0:02:16]} 11. a3 {[%clk 0:02:37]}  Nc6 {[%clk 0:02:03]} 12. Bd3 {[%clk 0:02:35]}  Rc8 {[%clk 0:01:56]} 13. Rc1 {[%clk 0:02:34]}  dxc4 {[%clk 0:01:47]} 14. bxc4 {[%clk 0:02:31]}  Kh8 {[%clk 0:01:33]} 15. Ne4 {[%clk 0:02:01]}  cxd4 {[%clk 0:01:22]} 16. Nxf6 {[%clk 0:01:28]}  Bxf6 {[%clk 0:01:22]} 17. exd4 {[%clk 0:01:22]}  Nxd4 {[%clk 0:01:23]} 18. Bxd4 {[%clk 0:01:21]}  Bxd4 {[%clk 0:01:24]} 19. Qc2 {[%clk 0:01:20]}  Bxf3 {[%clk 0:01:21]} 20. gxf3 {[%clk 0:01:19]}  Qh4 {[%clk 0:01:20]} 0-1


[Site "https://www.chess.com"]

[Event "Titled Tuesday Blitz April 05 Early 2022"]
[White "Chen, Qi b"]
[Black "Baches Garcia, Guillermo"]
[WhiteFideId "8614733"]
[BlackFideId "2209764"]
[WhiteElo "2432"]
[BlackElo "2486"]
[Result "1-0"]
[Round "07"]
[TimeControl "180+1"]
[Date "2022.04.05"]
[WhiteClock "0:00:26"]
[BlackClock "0:00:14"]

1. e4 {[%clk 0:03:00]}  c5 {[%clk 0:02:59]} 2. Nf3 {[%clk 0:03:00]}  d6 {[%clk 0:03:00]} 3. d4 {[%clk 0:03:00]}  cxd4 {[%clk 0:03:01]} 4. Nxd4 {[%clk 0:03:00]}  Nf6 {[%clk 0:03:01]} 5. Nc3 {[%clk 0:03:01]}  Nc6 {[%clk 0:03:02]} 6. Bg5 {[%clk 0:02:59]}  e6 {[%clk 0:03:02]} 7. Qd3 {[%clk 0:02:59]}  h6 {[%clk 0:03:03]} 8. Nxc6 {[%clk 0:02:49]}  bxc6 {[%clk 0:03:00]} 9. Bf4 {[%clk 0:02:50]}  e5 {[%clk 0:02:55]} 10. Bg3 {[%clk 0:02:20]}  Nh5 {[%clk 0:02:53]} 11. Be2 {[%clk 0:02:18]}  Nxg3 {[%clk 0:02:49]} 12. hxg3 {[%clk 0:02:17]}  Be7 {[%clk 0:02:43]} 13. O-O-O {[%clk 0:02:03]}  O-O {[%clk 0:02:41]} 14. f4 {[%clk 0:02:01]}  Qb6 {[%clk 0:02:34]} 15. Kb1 {[%clk 0:01:56]}  Rb8 {[%clk 0:02:33]} 16. b3 {[%clk 0:01:55]}  a5 {[%clk 0:02:27]} 17. f5 {[%clk 0:01:48]}  Qb4 {[%clk 0:02:18]} 18. Qc4 {[%clk 0:01:45]}  Bb7 {[%clk 0:01:42]} 19. g4 {[%clk 0:01:29]}  d5 {[%clk 0:01:32]} 20. exd5 {[%clk 0:01:26]}  cxd5 {[%clk 0:01:32]} 21. Nxd5 {[%clk 0:01:22]}  Bxd5 {[%clk 0:01:32]} 22. Qxb4 {[%clk 0:01:17]}  Bxb4 {[%clk 0:01:18]} 23. Rxd5 {[%clk 0:01:17]}  Rfd8 {[%clk 0:01:09]} 24. Rhd1 {[%clk 0:01:16]}  Rxd5 {[%clk 0:01:08]} 25. Rxd5 {[%clk 0:01:17]}  e4 {[%clk 0:01:03]} 26. Kb2 {[%clk 0:00:59]}  a4 {[%clk 0:00:42]} 27. c3 {[%clk 0:00:58]}  a3+ {[%clk 0:00:41]} 28. Kc2 {[%clk 0:00:58]}  Be7 {[%clk 0:00:37]} 29. Re5 {[%clk 0:00:53]}  Bf6 {[%clk 0:00:26]} 30. Rxe4 {[%clk 0:00:53]}  Rc8 {[%clk 0:00:26]} 31. Bc4 {[%clk 0:00:53]}  Kf8 {[%clk 0:00:26]} 32. b4 {[%clk 0:00:52]}  Rd8 {[%clk 0:00:23]} 33. Bb5 {[%clk 0:00:48]}  Bg5 {[%clk 0:00:19]} 34. Kb3 {[%clk 0:00:46]}  Bc1 {[%clk 0:00:19]} 35. Bc6 {[%clk 0:00:37]}  g6 {[%clk 0:00:19]} 36. fxg6 {[%clk 0:00:28]}  fxg6 {[%clk 0:00:18]} 37. Re2 {[%clk 0:00:28]}  Bb2 {[%clk 0:00:15]} 38. b5 {[%clk 0:00:27]}  h5 {[%clk 0:00:13]} 39. gxh5 {[%clk 0:00:26]}  gxh5 {[%clk 0:00:14]} 40. c4 {[%clk 0:00:26]} 1-0


[Site "https://www.chess.com"]

[Event "Titled Tuesday Blitz April 05 Early 2022"]
[White "Chernomordik, Pavel"]
[Black "Goryachkina, Aleksandra"]
[WhiteFideId "2804530"]
[BlackFideId "4147103"]
[WhiteElo "2220"]
[BlackElo "2426"]
[Result "0-1"]
[Round "07"]
[TimeControl "180+1"]
[Date "2022.04.05"]
[WhiteClock "0:00:33"]
[BlackClock "0:00:33"]

1. e4 {[%clk 0:03:00]}  e6 {[%clk 0:02:59]} 2. Nc3 {[%clk 0:03:00]}  d5 {[%clk 0:02:59]} 3. d4 {[%clk 0:02:59]}  Bb4 {[%clk 0:02:58]} 4. Ne2 {[%clk 0:02:59]}  dxe4 {[%clk 0:02:57]} 5. a3 {[%clk 0:02:58]}  Bxc3+ {[%clk 0:02:57]} 6. Nxc3 {[%clk 0:02:58]}  Nc6 {[%clk 0:02:57]} 7. Be3 {[%clk 0:02:58]}  Nf6 {[%clk 0:02:43]} 8. Bb5 {[%clk 0:02:56]}  Bd7 {[%clk 0:02:42]} 9. Bg5 {[%clk 0:02:55]}  Ne7 {[%clk 0:02:27]} 10. Bxf6 {[%clk 0:02:41]}  gxf6 {[%clk 0:02:27]} 11. Bxd7+ {[%clk 0:02:36]}  Qxd7 {[%clk 0:02:26]} 12. Nxe4 {[%clk 0:02:36]}  O-O-O {[%clk 0:02:24]} 13. Nxf6 {[%clk 0:02:32]}  Qb5 {[%clk 0:01:55]} 14. Ne4 {[%clk 0:02:13]}  Qxb2 {[%clk 0:01:45]} 15. O-O {[%clk 0:02:06]}  Qxd4 {[%clk 0:01:44]} 16. Qe2 {[%clk 0:02:05]}  Ng6 {[%clk 0:01:39]} 17. Rfd1 {[%clk 0:01:58]}  Qe5 {[%clk 0:01:39]} 18. Qf3 {[%clk 0:01:47]}  Nh4 {[%clk 0:01:29]} 19. Qe3 {[%clk 0:01:41]}  b6 {[%clk 0:01:01]} 20. Ng5 {[%clk 0:01:22]}  Qxe3 {[%clk 0:00:54]} 21. fxe3 {[%clk 0:01:21]}  Rdg8 {[%clk 0:00:46]} 22. Nxf7 {[%clk 0:01:13]}  Rxg2+ {[%clk 0:00:46]} 23. Kh1 {[%clk 0:01:13]}  Rf8 {[%clk 0:00:47]} 24. Rd4 {[%clk 0:01:12]}  Rxf7 {[%clk 0:00:45]} 25. Rxh4 {[%clk 0:01:12]}  Rxc2 {[%clk 0:00:45]} 26. Rf4 {[%clk 0:00:59]}  Rxf4 {[%clk 0:00:44]} 27. exf4 {[%clk 0:00:59]}  Rf2 {[%clk 0:00:44]} 28. Re1 {[%clk 0:00:58]}  Kd7 {[%clk 0:00:43]} 29. Re4 {[%clk 0:00:57]}  c5 {[%clk 0:00:43]} 30. Kg1 {[%clk 0:00:55]}  Rd2 {[%clk 0:00:43]} 31. h4 {[%clk 0:00:50]}  Kd6 {[%clk 0:00:42]} 32. h5 {[%clk 0:00:48]}  b5 {[%clk 0:00:40]} 33. h6 {[%clk 0:00:46]}  c4 {[%clk 0:00:39]} 34. a4 {[%clk 0:00:43]}  a6 {[%clk 0:00:36]} 35. f5 {[%clk 0:00:33]}  exf5 {[%clk 0:00:34]} 36. Re8 {[%clk 0:00:33]}  c3 {[%clk 0:00:33]} 0-1


[Site "https://www.chess.com"]

[Event "Titled Tuesday Blitz April 05 Early 2022"]
[White "Chernov, Mikhail"]
[Black "Lehtosaari, Mauri"]
[WhiteFideId "24143170"]
[BlackFideId "501999"]
[WhiteElo "2189"]
[BlackElo "2550"]
[Result "1/2-1/2"]
[Round "07"]
[TimeControl "180+1"]
[Date "2022.04.05"]
[WhiteClock "0:00:08"]
[BlackClock "0:00:13"]

1. e4 {[%clk 0:03:00]}  d5 {[%clk 0:03:00]} 2. exd5 {[%clk 0:03:01]}  Qxd5 {[%clk 0:03:01]} 3. Nc3 {[%clk 0:03:01]}  Qe5+ {[%clk 0:03:01]} 4. Be2 {[%clk 0:03:00]}  c6 {[%clk 0:03:01]} 5. Nf3 {[%clk 0:02:59]}  Qc7 {[%clk 0:03:01]} 6. O-O {[%clk 0:02:58]}  Bf5 {[%clk 0:03:01]} 7. d4 {[%clk 0:02:58]}  e6 {[%clk 0:03:01]} 8. Re1 {[%clk 0:02:50]}  Nf6 {[%clk 0:02:43]} 9. d5 {[%clk 0:02:38]}  cxd5 {[%clk 0:02:30]} 10. Nxd5 {[%clk 0:02:39]}  Nxd5 {[%clk 0:02:31]} 11. Qxd5 {[%clk 0:02:39]}  Be7 {[%clk 0:02:29]} 12. Bb5+ {[%clk 0:02:28]}  Nc6 {[%clk 0:02:24]} 13. Qc4 {[%clk 0:02:15]}  O-O {[%clk 0:02:20]} 14. Bf4 {[%clk 0:02:16]}  Qb6 {[%clk 0:02:12]} 15. Bxc6 {[%clk 0:01:52]}  Qxc6 {[%clk 0:01:46]} 16. Qxc6 {[%clk 0:01:52]}  bxc6 {[%clk 0:01:47]} 17. Nd4 {[%clk 0:01:47]}  Bf6 {[%clk 0:01:45]} 18. Nxf5 {[%clk 0:01:44]}  exf5 {[%clk 0:01:45]} 19. Be5 {[%clk 0:01:40]}  Bxe5 {[%clk 0:01:34]} 20. Rxe5 {[%clk 0:01:41]}  g6 {[%clk 0:01:34]} 21. Kf1 {[%clk 0:01:33]}  Rfe8 {[%clk 0:01:29]} 22. Rxe8+ {[%clk 0:01:32]}  Rxe8 {[%clk 0:01:29]} 23. Rd1 {[%clk 0:01:32]}  Rb8 {[%clk 0:01:28]} 24. b3 {[%clk 0:01:32]}  Rb5 {[%clk 0:01:27]} 25. Rd6 {[%clk 0:01:22]}  Rc5 {[%clk 0:01:15]} 26. c4 {[%clk 0:01:22]}  Kf8 {[%clk 0:01:13]} 27. Rd7 {[%clk 0:01:19]}  a5 {[%clk 0:01:09]} 28. Ke2 {[%clk 0:01:11]}  a4 {[%clk 0:01:06]} 29. Ra7 {[%clk 0:01:04]}  axb3 {[%clk 0:01:04]} 30. axb3 {[%clk 0:01:05]}  Re5+ {[%clk 0:01:05]} 31. Kd3 {[%clk 0:01:05]}  c5 {[%clk 0:00:59]} 32. Rc7 {[%clk 0:00:45]}  f4 {[%clk 0:00:55]} 33. Kc3 {[%clk 0:00:35]}  Rg5 {[%clk 0:00:36]} 34. g3 {[%clk 0:00:34]}  fxg3 {[%clk 0:00:36]} 35. hxg3 {[%clk 0:00:32]}  Rf5 {[%clk 0:00:31]} 36. f4 {[%clk 0:00:31]}  g5 {[%clk 0:00:30]} 37. b4 {[%clk 0:00:28]}  cxb4+ {[%clk 0:00:28]} 38. Kxb4 {[%clk 0:00:29]}  gxf4 {[%clk 0:00:28]} 39. gxf4 {[%clk 0:00:30]}  Rxf4 {[%clk 0:00:27]} 40. Kb5 {[%clk 0:00:30]}  h5 {[%clk 0:00:22]} 41. Rc5 {[%clk 0:00:30]}  f5 {[%clk 0:00:21]} 42. Rc7 {[%clk 0:00:28]}  Kg8 {[%clk 0:00:20]} 43. c5 {[%clk 0:00:25]}  h4 {[%clk 0:00:20]} 44. Re7 {[%clk 0:00:24]}  Rf1 {[%clk 0:00:19]} 45. c6 {[%clk 0:00:17]}  Rb1+ {[%clk 0:00:15]} 46. Kc5 {[%clk 0:00:17]}  Kf8 {[%clk 0:00:14]} 47. Rh7 {[%clk 0:00:17]}  Ke8 {[%clk 0:00:14]} 48. Kd6 {[%clk 0:00:16]}  Rd1+ {[%clk 0:00:13]} 49. Ke6 {[%clk 0:00:15]}  Kd8 {[%clk 0:00:14]} 50. Kxf5 {[%clk 0:00:07]}  h3 {[%clk 0:00:13]} 51. Rxh3 {[%clk 0:00:06]}  Kc7 {[%clk 0:00:12]} 52. Rc3 {[%clk 0:00:07]}  Rd6 {[%clk 0:00:12]} 53. Ke5 {[%clk 0:00:07]}  Rxc6 {[%clk 0:00:12]} 54. Rxc6+ {[%clk 0:00:08]}  Kxc6 {[%clk 0:00:13]} 1/2-1/2


[Site "https://www.chess.com"]

[Event "Titled Tuesday Blitz April 05 Early 2022"]
[White "Chincholimath, Halsagar"]
[Black "Maung, Maung Kyaw Zaw Hein"]
[WhiteFideId "5022487"]
[BlackFideId "13001698"]
[WhiteElo "1737"]
[BlackElo "1785"]
[Result "1-0"]
[Round "07"]
[TimeControl "180+1"]
[Date "2022.04.05"]
[WhiteClock "0:00:32"]
[BlackClock "0:00:01"]

1. e4 {[%clk 0:03:00]}  c6 {[%clk 0:02:59]} 2. Bc4 {[%clk 0:02:59]}  d5 {[%clk 0:02:59]} 3. Bb3 {[%clk 0:02:59]}  dxe4 {[%clk 0:02:57]} 4. Qh5 {[%clk 0:02:58]}  g6 {[%clk 0:02:52]} 5. Qh4 {[%clk 0:02:58]}  Nf6 {[%clk 0:02:51]} 6. f3 {[%clk 0:02:56]}  exf3 {[%clk 0:02:47]} 7. Nxf3 {[%clk 0:02:56]}  Bg7 {[%clk 0:02:46]} 8. O-O {[%clk 0:02:42]}  O-O {[%clk 0:02:38]} 9. d4 {[%clk 0:02:42]}  Bf5 {[%clk 0:02:14]} 10. h3 {[%clk 0:02:31]}  Be4 {[%clk 0:02:08]} 11. Nbd2 {[%clk 0:02:20]}  Bd5 {[%clk 0:02:00]} 12. c4 {[%clk 0:02:18]}  Bxf3 {[%clk 0:01:56]} 13. Nxf3 {[%clk 0:02:17]}  Nbd7 {[%clk 0:01:45]} 14. Bh6 {[%clk 0:02:15]}  Qc7 {[%clk 0:01:34]} 15. Ng5 {[%clk 0:02:05]}  e6 {[%clk 0:01:28]} 16. c5 {[%clk 0:01:44]}  Rae8 {[%clk 0:01:22]} 17. Rf3 {[%clk 0:01:35]}  b6 {[%clk 0:00:28]} 18. Raf1 {[%clk 0:01:28]}  bxc5 {[%clk 0:00:28]} 19. Bxg7 {[%clk 0:01:17]}  Kxg7 {[%clk 0:00:27]} 20. Rxf6 {[%clk 0:01:13]}  Nxf6 {[%clk 0:00:27]} 21. Rxf6 {[%clk 0:01:13]}  h6 {[%clk 0:00:17]} 22. Ne4 {[%clk 0:01:00]}  cxd4 {[%clk 0:00:15]} 23. Rf1 {[%clk 0:00:42]}  d3 {[%clk 0:00:13]} 24. Qf6+ {[%clk 0:00:36]}  Kh7 {[%clk 0:00:10]} 25. Qc3 {[%clk 0:00:35]}  Rd8 {[%clk 0:00:08]} 26. Nf6+ {[%clk 0:00:33]}  Kg7 {[%clk 0:00:02]} 27. Nh5+ {[%clk 0:00:32]}  Kh7 {[%clk 0:00:01]} 28. Qg7# {[%clk 0:00:32]} 1-0


[Site "https://www.chess.com"]